bitfinex/quotes_ETHUSD_20250804
["timestamp","ask_amount","ask_price","bid_price","bid_amount"]
[1754334165890,0.001,3682.0,3681.9,9.36595539]
[1754334166091,0.001,3682.0,3681.9,12.50115539]
[1754334166291,0.001,3682.0,3681.9,8.34215539]
[1754334166469,0.001,3682.0,3681.9,12.50015539]
[1754334167305,0.001,3682.0,3681.9,8.34215539]
[1754334167491,0.001,3682.0,3681.9,12.50015539]
[1754334167688,0.001,3682.0,3681.9,8.34215539]
[1754334167895,0.001,3682.0,3681.9,12.50015539]
[1754334168300,0.001,3682.0,3681.9,8.34215539]
[1754334168502,0.001,3682.0,3681.9,19.02315539]
[1754334172023,0.001,3682.0,3681.9,18.13055539]
[1754334172226,0.001,3682.0,3681.9,13.97255539]
[1754334172396,0.497,3682.0,3681.9,10.8152]
[1754334172718,0.001,3682.0,3681.9,13.53118902]
[1754334173095,0.001,3682.0,3681.9,10.8152]
[1754334173298,0.97,3682.0,3681.9,10.8152]
[1754334173915,0.97,3682.0,3681.9,6.6582]
[1754334174085,3.68591526,3682.0,3681.9,10.8152]
[1754334174285,0.97,3682.0,3681.9,10.8152]
[1754334174713,3.68591526,3682.0,3681.9,10.8152]
[1754334176622,0.97,3682.0,3681.9,10.8152]
[1754334177407,0.001,3682.0,3681.9,10.8152]
[1754334177824,0.001,3682.0,3681.9,13.53118902]
[1754334178220,0.001,3682.0,3681.9,10.8152]
[1754334178596,0.497,3682.0,3681.9,10.8152]
[1754334178791,0.001,3682.0,3681.9,10.8152]
[1754334179025,0.001,3682.0,3681.9,13.53118902]
[1754334180335,0.497,3682.0,3681.9,13.53118902]
[1754334180495,0.001,3682.0,3681.9,13.53118902]
[1754334180850,0.001,3682.0,3681.9,20.07601995]
[1754334181133,0.001,3682.0,3681.9,9.6582]
[1754334181315,0.97,3682.0,3681.9,6.6582]
[1754334181516,0.97,3682.0,3681.9,10.68]
[1754334181718,3.68591526,3682.0,3681.9,10.68]
[1754334182932,3.68591526,3682.0,3681.9,6.523]
[1754334183133,2.71621034,3681.6,3681.5,0.002]
[1754334183299,2.75016296,3681.6,3681.5,4.159]
[1754334183505,3.68521034,3681.6,3681.5,4.159]
[1754334184331,6.68521034,3681.6,3681.5,4.159]
[1754334184816,6.68521034,3681.6,3681.5,0.002]
[1754334185023,7.62534382,3681.6,3681.5,0.002]
[1754334185415,7.76193149,3681.6,3681.5,0.002]
[1754334185801,7.76193149,3681.6,3681.5,1e-08]
[1754334186005,37.76193149,3681.6,3681.5,1e-08]
[1754334186932,37.96633066,3681.6,3681.5,1e-08]
[1754334187146,2.71650548,3681.2,3681.1,1e-08]
[1754334187325,5.75046179,3681.2,3681.1,1e-08]
[1754334187635,6.68550548,3681.2,3681.1,1e-08]
[1754334187834,36.68550548,3681.2,3681.1,1e-08]
[1754334193525,36.68550548,3681.2,3680.7,0.002]
[1754334193526,5.71680069,3680.8,3680.7,1e-08]
[1754334193736,35.71680069,3680.8,3680.7,1e-08]
[1754334193942,36.68580069,3680.8,3680.7,1e-08]
[1754334196707,10.84480069,3680.8,3680.7,1e-08]
[1754334197227,40.84480069,3680.8,3680.7,1e-08]
[1754334197428,41.78493417,3680.8,3680.7,1e-08]
[1754334198230,7.62593417,3680.8,3680.7,1e-08]
[1754334198440,11.78493417,3680.8,3680.7,1e-08]
[1754334199051,11.31193417,3680.8,3680.7,1e-08]
[1754334200322,10.01593417,3680.8,3680.7,1e-08]
[1754334200540,7.15293417,3680.8,3680.7,1e-08]
[1754334200772,3.65693417,3680.8,3680.7,1e-08]
[1754334200956,6.65693417,3680.8,3680.7,1e-08]
[1754334201180,2.71677752,3680.9,3680.7,0.93930001]
[1754334201472,0.1352,3680.9,3680.8,0.9393]
[1754334201670,2.85192688,3680.9,3680.8,0.9393]
[1754334203959,0.1352,3680.9,3680.8,0.9393]
[1754334204872,0.001,3681.6,3680.8,4.43762936]
[1754334205034,0.001,3681.6,3680.9,0.9393]
[1754334205361,0.001,3681.6,3681.0,0.1352]
[1754334205535,0.001,3681.6,3681.0,1.0745]
[1754334205740,2.71640599,3681.4,3681.0,1.0745]
[1754334205948,2.71631099,3681.5,3681.1,0.9393]
[1754334206147,0.001,3681.6,3681.2,0.9393]
[1754334206350,2.71722565,3681.6,3681.2,0.9393]
[1754334206574,2.71722565,3681.6,3681.3,0.9393]
[1754334206899,2.71628412,3681.5,3681.4,5.0973]
[1754334207072,2.71723681,3681.6,3681.4,5.0973]
[1754334207382,2.71723681,3681.6,3681.5,0.487]
[1754334207538,2.71628412,3681.5,3681.4,4.158]
[1754334209940,0.001,3681.6,3681.4,5.0973]
[1754334210169,0.001,3681.6,3681.4,4.6103]
[1754334210476,2.71721034,3681.6,3681.5,0.487]
[1754334210674,2.71628412,3681.5,3681.4,4.158]
[1754334214380,2.71628412,3681.5,3681.4,4.157]
[1754334214381,7.22743125,3681.5,3681.4,4.157]
[1754334214555,2.71680069,3680.8,3680.7,1e-08]
[1754334214758,2.71680069,3680.8,3680.7,4.15700001]
[1754334215879,3.27706829,3680.8,3680.7,1e-08]
[1754334216187,3.86586829,3680.8,3680.7,4.15700001]
[1754334216593,3.41226829,3680.8,3680.7,4.15700001]
[1754334219366,3.41226829,3680.8,3680.7,1e-08]
[1754334219570,7.36652829,3680.8,3680.7,4.15700001]
[1754334219764,7.33256829,3680.8,3680.7,4.15700001]
[1754334222191,6.86586829,3680.8,3680.7,4.15700001]
[1754334222397,5.85200069,3680.8,3680.7,4.15700001]
[1754334222595,1.0104633,3681.5,3680.7,5.09630001]
[1754334222796,0.1352,3681.0,3680.7,4.60930001]
[1754334223098,0.1352,3681.0,3680.8,0.9393]
[1754334223505,0.1352,3681.0,3680.9,0.4523]
[1754334224014,0.1352,3681.0,3680.9,0.9393]
[1754334224219,2.71723678,3681.6,3681.0,2.71664837]
[1754334224508,2.71628745,3681.5,3681.1,0.9393]
[1754334224806,2.71628745,3681.5,3681.2,4.2922]
[1754334224981,2.71628745,3681.5,3681.3,0.9393]
[1754334226404,0.001,3681.6,3681.4,0.9393]
[1754334226703,2.71721863,3681.6,3681.4,0.487]
[1754334226946,2.71635505,3681.5,3681.2,4.2922]
[1754334228499,0.001,3681.6,3681.3,0.4573]
[1754334228694,2.71726215,3681.6,3681.3,0.4573]
[1754334230300,0.001,3681.6,3681.4,0.4302]
[1754334230511,0.001,3681.6,3681.5,0.90244]
[1754334230766,0.001,3681.6,3681.5,4.07602412]
[1754334230882,0.001,3682.0,3681.9,3.26598902]
[1754334231081,0.001,3682.0,3681.9,23.96184798]
[1754334231296,0.001,3682.1,3682.0,3.26591526]
[1754334231478,0.001,3682.1,3682.0,11.03807712]
[1754334234608,0.001,3682.1,3682.0,6.88207712]
[1754334234780,0.001,3682.1,3682.0,8.30941526]
[1754334235794,0.001,3682.1,3682.0,7.87821526]
[1754334235970,0.001,3682.1,3682.0,8.30841526]
[1754334236807,0.001,3682.1,3682.0,12.51841526]
[1754334237994,0.001,3682.1,3682.0,12.08821526]
[1754334238324,0.001,3682.1,3682.0,14.01235694]
[1754334240231,0.001,3682.1,3682.0,9.85735694]
[1754334240403,0.001,3682.1,3682.0,13.58115694]
[1754334241202,0.001,3682.1,3682.0,14.01135694]
[1754334242136,0.001,3682.1,3682.0,8.96985694]
[1754334242428,0.001,3682.1,3682.0,13.12385694]
[1754334242925,0.001,3682.1,3682.0,14.01135694]
[1754334244852,0.001,3682.1,3682.0,17.01135694]
[1754334244997,0.001,3682.1,3682.0,17.14655694]
[1754334246626,0.001,3682.1,3681.5,0.47224]
[1754334246627,0.001,3682.1,3681.5,0.68058917]
[1754334246943,0.9246,3682.0,3681.6,4.154]
[1754334247128,2.71621034,3681.6,3681.5,6.521]
[1754334247307,3.64081034,3681.6,3681.5,6.521]
[1754334247634,3.64081034,3681.6,3681.5,10.674]
[1754334248640,0.9246,3681.6,3681.0,6.52436959]
[1754334248819,2.71621034,3681.6,3681.5,6.521]
[1754334249005,2.71621034,3681.6,3681.5,10.674]
[1754334249419,3.64081034,3681.6,3681.5,10.674]
[1754334251505,2.71657928,3681.1,3681.0,6.52436959]
[1754334251842,3.64117928,3681.1,3681.0,17.20036959]
[1754334252535,3.64117928,3681.1,3681.0,6.52436959]
[1754334252843,3.64117928,3681.1,3681.0,17.20036959]
[1754334253343,0.4558,3681.6,3681.0,17.20036959]
[1754334253740,2.71647131,3681.3,3681.0,17.20036959]
[1754334253944,2.71638263,3681.4,3681.0,17.20036959]
[1754334254114,3.17218263,3681.4,3681.0,17.20036959]
[1754334255539,0.4558,3681.4,3681.0,17.20036959]
[1754334255711,3.17215871,3681.4,3681.0,17.20036959]
[1754334256114,3.17215871,3681.4,3681.0,13.04636959]
[1754334256115,2.71643605,3681.3,3681.0,13.04636959]
[1754334256308,3.64113251,3681.2,3681.1,4.154]
[1754334256513,3.17708813,3681.4,3681.1,4.2892]
[1754334256814,0.4607,3681.3,3681.1,4.2892]
[1754334257520,2.71644345,3681.3,3681.1,4.2892]
[1754334257748,0.4607,3681.2,3681.1,4.2892]
[1754334258750,2.71638506,3681.4,3681.1,4.2892]
[1754334258913,3.17708506,3681.4,3681.1,4.2892]
[1754334259112,0.4607,3681.3,3681.1,4.2892]
[1754334259610,3.17713988,3681.3,3681.1,4.2892]
[1754334260023,2.71643988,3681.3,3681.1,4.2892]
[1754334260231,0.4607,3681.2,3681.1,4.2892]
[1754334260406,3.17720548,3681.2,3681.1,4.2892]
[1754334260611,0.9133,3681.2,3681.1,4.2912]
[1754334261458,0.4607,3681.2,3681.1,4.2912]
[1754334263269,0.4607,3681.2,3681.1,10.8142]
[1754334264234,3.1770878,3681.4,3681.1,10.8142]
[1754334264545,3.17715186,3681.3,3681.1,10.8142]
[1754334264746,0.4607,3681.3,3681.1,10.8142]
[1754334264946,3.17713498,3681.3,3681.1,10.8142]
[1754334265659,2.71643498,3681.3,3681.1,6.6602]
[1754334265846,2.71643498,3681.3,3681.2,4.154]
[1754334266043,2.71638286,3681.4,3681.2,4.154]
[1754334266370,0.4607,3681.3,3681.2,4.154]
[1754334266868,3.17713169,3681.3,3681.2,4.154]
[1754334268037,3.62973169,3681.3,3681.2,4.154]
[1754334269968,0.4607,3681.3,3681.2,4.154]
[1754334270337,0.1352,3681.8,3681.2,4.154]
[1754334270338,2.71690455,3682.1,3681.2,7.38864733]
[1754334270534,0.001,3682.1,3681.4,13.40085404]
[1754334270838,0.001,3682.1,3682.0,0.1352]
[1754334271044,0.001,3682.1,3682.0,4.2892]
[1754334271045,0.4617,3682.1,3682.0,4.2892]
[1754334271442,0.9143,3682.1,3682.0,4.2892]
[1754334271748,3.6301415,3682.1,3682.0,0.1352]
[1754334271947,3.6301415,3682.1,3682.0,4.2892]
[1754334272155,3.1775415,3682.1,3682.0,4.154]
[1754334272672,3.1775415,3682.1,3681.8,0.1352]
[1754334272673,2.71598902,3681.9,3681.8,0.1352]
[1754334272858,2.7163579,3681.4,3681.3,4.21]
[1754334273059,2.7163579,3681.4,3681.3,14.887]
[1754334273060,0.4607,3681.4,3681.3,14.887]
[1754334273670,0.4526,3681.6,3681.3,14.887]
[1754334273671,0.9133,3681.6,3681.3,14.887]
[1754334273970,0.4607,3682.0,3681.3,15.0222]
[1754334274148,2.71613339,3681.8,3681.3,15.0222]
[1754334274355,3.17683801,3681.7,3681.3,15.0222]
[1754334274678,0.4607,3681.7,3681.3,15.0222]
[1754334274976,0.4607,3681.7,3681.3,10.8682]
[1754334275273,0.4607,3681.7,3681.4,4.154]
[1754334275779,2.71599823,3681.9,3681.4,4.154]
[1754334275975,0.4526,3681.9,3681.3,6.6582]
[1754334276276,3.17680883,3681.8,3681.4,4.154]
[1754334276975,2.71613718,3681.7,3681.4,4.154]
[1754334277141,0.4607,3681.6,3681.4,4.154]
[1754334277571,2.71606831,3681.8,3681.4,4.154]
[1754334277749,0.9133,3681.6,3681.5,4.154]
[1754334277948,2.71600352,3681.9,3681.5,4.154]
[1754334277949,2.71608329,3681.8,3681.5,4.154]
[1754334278354,3.17678329,3681.8,3681.5,4.154]
[1754334278872,2.71614738,3681.7,3681.3,6.6582]
[1754334279081,3.62955723,3681.6,3681.3,6.6582]
[1754334279375,0.9133,3681.5,3681.4,4.153]
[1754334280644,3.62958412,3681.5,3681.4,4.153]
[1754334280846,2.7163579,3681.4,3681.3,6.523]
[1754334281046,3.6296579,3681.4,3681.3,10.676]
[1754334281244,0.4607,3681.4,3681.3,10.676]
[1754334281472,2.71629207,3681.5,3681.3,10.676]
[1754334281880,3.17699207,3681.5,3681.3,10.676]
[1754334282107,2.7163579,3681.4,3681.3,10.676]
[1754334282381,3.1770579,3681.4,3681.3,6.523]
[1754334282577,0.9133,3681.4,3681.3,10.676]
[1754334283647,0.4607,3681.4,3681.3,6.523]
[1754334283845,0.4607,3681.6,3681.3,10.676]
[1754334284459,3.17696114,3681.6,3681.3,10.676]
[1754334286085,3.17699559,3681.5,3681.4,4.153]
[1754334286760,3.17699559,3681.5,3681.3,6.523]
[1754334286761,2.7163579,3681.4,3681.3,6.523]
[1754334286952,2.7163579,3681.4,3681.3,10.676]
[1754334287292,0.4562,3681.4,3681.3,10.676]
[1754334287588,2.7163113,3681.5,3681.3,10.676]
[1754334287896,3.1725113,3681.5,3681.3,10.676]
[1754334288300,0.4562,3681.5,3681.3,10.676]
[1754334288506,3.17250069,3681.5,3681.3,10.676]
[1754334288679,2.71630069,3681.5,3681.3,10.676]
[1754334290802,2.71630069,3681.5,3681.3,6.523]
[1754334291102,2.71630069,3681.5,3681.4,4.153]
[1754334291707,2.71650548,3681.2,3681.1,0.1372]
[1754334291872,2.71650548,3681.2,3681.1,0.002]
[1754334292071,3.61260548,3681.2,3681.1,4.155]
[1754334292972,3.61260548,3681.2,3681.1,0.002]
[1754334293388,3.61260548,3681.2,3681.1,4.155]
[1754334293597,4.26265893,3681.2,3681.1,4.155]
[1754334295487,4.26265893,3681.2,3681.1,0.002]
[1754334295707,7.29661524,3681.2,3681.1,0.002]
[1754334295878,2.71680069,3680.8,3680.7,1e-08]
[1754334296208,2.75076069,3680.8,3680.7,4.15300001]
[1754334296372,4.24925839,3680.8,3680.7,4.15300001]
[1754334297472,4.24925839,3680.8,3680.7,1e-08]
[1754334297676,7.28321839,3680.8,3680.7,4.15300001]
[1754334297978,7.24925839,3680.8,3680.7,4.15300001]
[1754334298288,7.24925839,3680.8,3680.7,1e-08]
[1754334298492,7.24925839,3680.8,3680.7,4.15300001]
[1754334299202,6.35315839,3680.8,3680.7,4.15300001]
[1754334299509,7.24925839,3680.8,3680.7,4.15300001]
[1754334301299,7.79925839,3680.8,3680.7,4.15300001]
[1754334301499,9.43125839,3680.8,3680.7,4.15300001]
[1754334301682,7.79925839,3680.8,3680.7,1e-08]
[1754334302011,2.71694832,3680.6,3680.3,0.002]
[1754334302178,4.10253084,3680.6,3680.5,4.155]
[1754334302383,4.96466899,3680.6,3680.5,4.155]
[1754334302811,2.71702214,3680.5,3680.4,1.301843]
[1754334303128,5.71709596,3680.4,3680.3,0.002]
[1754334303323,6.61319596,3680.4,3680.3,0.002]
[1754334303478,7.68137984,3680.4,3680.3,0.002]
[1754334304387,6.26790829,3679.3,3679.2,1e-08]
[1754334304640,6.90278107,3679.3,3679.2,1e-08]
[1754334305092,7.79888107,3679.3,3679.2,1e-08]
[1754334305296,7.79888107,3679.3,3679.2,4.20100001]
[1754334305619,7.79888107,3679.3,3679.2,1.14155634]
[1754334305999,5.71805604,3679.1,3679.0,4.203]
[1754334306199,7.96584975,3679.1,3679.0,4.203]
[1754334306825,8.17471819,3679.1,3679.0,4.203]
[1754334306996,8.17471819,3679.1,3679.0,0.002]
[1754334307196,7.27861819,3679.1,3679.0,0.002]
[1754334307932,7.73481819,3679.1,3679.0,0.002]
[1754334309532,8.17471819,3679.1,3679.0,4.201]
[1754334309836,8.17471819,3679.1,3679.0,0.002]
[1754334310399,3.0,3678.9,3678.8,0.002]
[1754334310637,3.03397754,3678.9,3678.8,0.002]
[1754334310999,6.19208135,3678.9,3678.8,0.002]
[1754334311335,6.61430381,3678.9,3678.8,0.002]
[1754334312652,5.71820381,3678.9,3678.8,0.002]
[1754334313698,0.4562,3679.8,3678.8,0.002]
[1754334314040,2.71820381,3678.9,3678.8,0.4721]
[1754334314836,2.71820381,3678.9,3678.8,0.002]
[1754334315699,1.58492464,3679.2,3678.8,0.002]
[1754334315916,1.58492464,3679.2,3678.8,1.0592]
[1754334316141,1.58492464,3679.2,3678.9,0.922]
[1754334316447,2.7186472,3678.3,3677.0,0.4519]
[1754334316732,2.7186472,3678.3,3677.3,4.198]
[1754334316733,36.2686472,3678.3,3677.3,4.198]
[1754334316933,38.82077459,3678.3,3677.3,4.198]
[1754334317446,7.34307459,3678.3,3677.5,4.288]
[1754334317650,7.34307459,3678.3,3677.6,0.486]
[1754334318548,4.62442739,3678.3,3677.9,0.486]
[1754334318756,7.34307459,3678.3,3677.9,0.486]
[1754334319942,7.34307459,3678.3,3677.8,0.4349]
[1754334320654,7.34307459,3678.3,3678.0,4.29]
[1754334320655,8.81633234,3678.3,3678.0,4.29]
[1754334320839,8.34923234,3678.3,3678.0,4.29]
[1754334321554,5.63058514,3678.3,3678.0,4.29]
[1754334321758,4.62442739,3678.3,3678.0,4.29]
[1754334322255,1.62442739,3678.3,3678.2,0.9229]
[1754334324156,1.62442739,3678.3,3678.2,5.2069]
[1754334325446,1.62442739,3678.3,3678.2,7.92562111]
[1754334326164,1.62442739,3678.3,3678.2,8.06082111]
[1754334326327,1.62442739,3678.3,3678.2,5.3421]
[1754334327158,1.62442739,3678.3,3678.2,0.002]
[1754334327357,1.62442739,3678.3,3678.2,4.283]
[1754334328271,1.62442739,3678.3,3678.2,4.281]
[1754334328489,1.62442739,3678.3,3678.2,4.28]
[1754334328971,1.62442739,3678.3,3678.2,0.002]
[1754334329146,1.62442739,3678.3,3678.2,4.279]
[1754334329537,1.62442739,3678.3,3678.2,6.99772111]
[1754334329745,1.62442739,3678.3,3678.2,7.91862111]
[1754334329944,1.62442739,3678.3,3678.2,8.99608373]
[1754334330289,1.62442739,3678.3,3678.2,9.13128373]
[1754334332176,1.62442739,3678.3,3678.2,4.85428373]
[1754334332476,1.62442739,3678.3,3678.2,0.1372]
[1754334332662,1.62442739,3678.3,3678.2,4.277]
[1754334333373,1.62442739,3678.3,3678.2,4.278]
[1754334333571,1.62442739,3678.3,3678.2,6.99672111]
[1754334334581,1.62442739,3678.3,3678.2,4.278]
[1754334334889,1.62442739,3678.3,3678.2,0.002]
[1754334335091,1.62442739,3678.3,3678.2,4.275]
[1754334337388,1.62442739,3678.3,3678.2,5.1929]
[1754334337587,1.62442739,3678.3,3678.2,7.91062111]
[1754334337888,1.62442739,3678.3,3678.2,7.47572111]
[1754334338094,1.62442739,3678.3,3678.2,4.271]
[1754334338288,2.85356657,3678.7,3678.2,4.271]
[1754334338592,0.6023,3678.7,3678.2,6.98971926]
[1754334338759,0.1352,3678.7,3678.2,6.98971926]
[1754334338963,2.85355624,3678.7,3678.2,4.271]
[1754334339160,3.32065624,3678.7,3678.2,4.271]
[1754334339363,3.31415624,3678.7,3678.2,4.271]
[1754334339692,0.4671,3678.6,3678.2,4.271]
[1754334340292,3.18553147,3678.6,3678.3,4.266]
[1754334340488,0.03398124,3678.5,3678.2,0.002]
[1754334340688,1.0629,3678.5,3678.3,4.265]
[1754334340999,0.9277,3678.4,3678.2,0.002]
[1754334341198,0.9277,3678.4,3678.3,4.265]
[1754334342076,0.4671,3678.4,3678.3,4.265]
[1754334342282,3.64606454,3678.7,3678.3,4.265]
[1754334342482,0.1352,3678.4,3678.3,4.265]
[1754334343615,0.6023,3678.4,3678.3,4.265]
[1754334344310,3.32087329,3678.4,3678.3,4.265]
[1754334344512,3.78147329,3678.4,3678.3,4.265]
[1754334344818,3.78147329,3678.4,3678.2,0.002]
[1754334344819,2.7186472,3678.3,3678.2,0.002]
[1754334345015,3.13077762,3678.3,3678.2,4.262]
[1754334345213,4.02449453,3678.3,3678.2,4.262]
[1754334345513,4.02449453,3678.3,3678.2,4.261]
[1754334346119,7.05847762,3678.3,3678.2,4.262]
[1754334346415,7.02449453,3678.3,3678.2,4.262]
[1754334347914,6.09679453,3678.3,3678.2,4.262]
[1754334348616,3.37814733,3678.3,3678.2,4.262]
[1754334348783,3.0,3678.3,3678.2,4.262]
[1754334348982,0.5004,3678.8,3678.2,4.262]
[1754334349196,0.1352,3678.3,3678.2,4.262]
[1754334349415,0.1352,3678.3,3678.2,7.88702111]
[1754334350007,2.7192958,3678.8,3678.2,7.88702111]
[1754334350008,0.1352,3678.7,3678.2,7.88702111]
[1754334350317,0.1352,3678.7,3678.3,0.4645]
[1754334350518,0.1352,3678.7,3678.4,3.62482828]
[1754334351045,0.1352,3678.7,3678.5,0.4645]
[1754334351186,0.1352,3678.7,3678.6,4.255]
[1754334351787,0.001,3678.8,3678.7,2.71835159]
[1754334352002,0.001,3678.8,3678.7,4.68586473]
[1754334352215,0.001,3678.8,3678.7,1.96751314]
[1754334352417,0.001,3678.8,3678.7,4.68586473]
[1754334353121,0.001,3678.8,3678.7,4.69990125]
[1754334353496,0.001,3678.8,3678.7,4.68586473]
[1754334354210,0.001,3678.8,3678.7,4.69990125]
[1754334354622,0.001,3678.8,3678.7,4.68586473]
[1754334356650,0.001,3678.8,3678.7,4.69990125]
[1754334356859,0.001,3678.8,3678.7,5.24990125]
[1754334358440,0.001,3678.8,3678.7,5.23586473]
[1754334360115,0.001,3678.8,3678.7,8.24990125]
[1754334360316,0.001,3678.8,3678.7,8.23586473]
[1754334360560,1e-08,3678.8,3678.7,8.23586473]
[1754334362259,1e-08,3678.8,3678.7,12.47886473]
[1754334363976,0.001,3679.2,3679.1,0.55]
[1754334364200,0.001,3679.2,3679.1,22.29487641]
[1754334364343,0.001,3679.2,3679.1,22.75937641]
[1754334364544,0.001,3679.2,3679.1,19.09437641]
[1754334364747,0.001,3679.2,3679.1,18.87707641]
[1754334364972,0.001,3679.2,3679.1,14.63807641]
[1754334365244,0.5004,3679.2,3679.1,17.82925603]
[1754334365473,0.5004,3679.2,3679.1,13.59025603]
[1754334365789,0.5004,3679.2,3679.1,17.82925603]
[1754334366101,0.5004,3679.2,3679.1,13.59025603]
[1754334366280,0.9519,3679.2,3679.1,17.82925603]
[1754334367449,0.9519,3679.2,3679.1,10.87219999]
[1754334367647,0.9519,3679.2,3679.1,15.11019999]
[1754334368061,0.9519,3679.2,3679.1,14.97499999]
[1754334369190,0.9519,3679.2,3679.1,17.69305603]
[1754334369695,0.9519,3679.2,3679.1,14.97499999]
[1754334369922,0.9519,3679.2,3679.1,10.765]
[1754334370127,0.9519,3679.2,3679.1,13.47905604]
[1754334370291,0.9519,3679.2,3679.1,6.527]
[1754334370618,0.9519,3679.2,3679.1,10.761]
[1754334370806,0.9519,3679.2,3679.1,13.47905604]
[1754334371013,0.9519,3679.2,3679.1,10.761]
[1754334371604,0.9519,3679.2,3679.1,13.47905604]
[1754334372110,0.9519,3679.2,3679.1,6.527]
[1754334372315,0.9519,3679.2,3679.1,10.76]
[1754334372517,0.9519,3679.2,3679.1,13.47805604]
[1754334373203,0.9519,3679.2,3679.1,9.24505604]
[1754334373403,0.9519,3679.2,3679.1,13.47505604]
[1754334373623,0.9519,3679.2,3679.1,9.24505604]
[1754334373929,0.9519,3679.2,3679.1,13.47405604]
[1754334374542,0.9519,3679.2,3679.1,10.756]
[1754334375203,0.9519,3679.2,3679.1,13.47405604]
[1754334375541,0.9519,3679.2,3679.1,10.756]
[1754334375712,0.9519,3679.2,3679.1,6.527]
[1754334375917,0.9519,3679.2,3679.1,10.756]
[1754334376106,0.9519,3679.2,3679.1,13.47405604]
[1754334376308,0.001,3679.2,3679.1,13.47405604]
[1754334376747,0.001,3679.2,3679.1,29.46038325]
[1754334377041,0.001,3679.2,3679.1,29.59558325]
[1754334379946,0.001,3679.2,3679.1,16.1803008]
[1754334380647,0.001,3679.2,3679.1,11.4841008]
[1754334380816,0.001,3679.2,3679.1,15.2350008]
[1754334383236,0.001,3679.2,3679.1,16.1733008]
[1754334384332,0.001,3679.2,3679.1,15.2350008]
[1754334384535,0.001,3679.2,3679.1,11.0130008]
[1754334384750,0.001,3679.2,3679.1,15.2310008]
[1754334385115,0.001,3679.2,3679.1,15.7021008]
[1754334387216,0.001,3679.2,3679.1,16.1693008]
[1754334388226,0.001,3679.2,3679.1,19.1693008]
[1754334388641,1e-08,3679.2,3679.1,19.1693008]
[1754334389140,1e-08,3679.2,3679.1,19.7193008]
[1754334389343,1e-08,3679.2,3679.1,15.5013008]
[1754334389560,1e-08,3679.2,3679.1,19.7143008]
[1754334390057,1e-08,3679.2,3679.1,15.5013008]
[1754334390362,1e-08,3679.2,3679.1,19.7143008]
[1754334390761,1e-08,3679.2,3679.1,18.7750008]
[1754334392386,1e-08,3679.2,3679.1,19.2461008]
[1754334393058,1e-08,3679.2,3679.1,19.2441008]
[1754334393867,1e-08,3679.2,3679.1,15.2230008]
[1754334396064,1e-08,3679.2,3679.1,11.0130008]
[1754334396269,1e-08,3679.2,3679.1,15.2210008]
[1754334398467,1e-08,3679.2,3679.1,15.6921008]
[1754334398637,1e-08,3679.2,3679.1,19.7093008]
[1754334399544,1e-08,3679.2,3679.1,23.91930079]
[1754334400564,1e-08,3679.2,3679.1,19.71130079]
[1754334400740,1e-08,3679.2,3679.1,23.91630079]
[1754334401056,1e-08,3679.2,3679.1,22.42700079]
[1754334403472,1e-08,3679.2,3679.1,18.22300079]
[1754334403771,1e-08,3679.2,3679.1,22.42700079]
[1754334404075,1e-08,3679.2,3679.1,18.22300079]
[1754334404274,1e-08,3679.2,3679.1,22.42500079]
[1754334404669,1e-08,3679.2,3679.1,18.22300079]
[1754334404847,1e-08,3679.2,3679.1,22.42300079]
[1754334405954,1e-08,3679.2,3679.1,22.42200079]
[1754334406745,1e-08,3679.2,3679.1,35.8304957]
[1754334406956,1e-08,3679.2,3679.1,32.0966957]
[1754334407178,1e-08,3679.2,3679.1,36.2956957]
[1754334407400,1e-08,3679.2,3679.1,35.8304957]
[1754334407877,1e-08,3679.2,3679.1,36.2956957]
[1754334408072,1e-08,3679.2,3679.1,36.7453957]
[1754334408876,0.001,3680.0,3679.6,3.55]
[1754334409098,0.001,3680.0,3679.9,2.71746514]
[1754334409294,0.001,3680.0,3679.9,7.04966514]
[1754334409785,0.9231,3680.0,3679.9,7.04966514]
[1754334411200,0.9231,3680.0,3679.9,13.57466514]
[1754334411476,0.9231,3680.0,3679.9,14.68357009]
[1754334414282,0.9231,3680.0,3679.9,18.89357008]
[1754334414783,0.001,3680.0,3679.9,18.89357008]
[1754334415160,0.9231,3680.0,3679.9,18.89357008]
[1754334417172,0.4604,3680.0,3679.9,18.89357008]
[1754334418652,0.9231,3680.0,3679.9,18.89357008]
[1754334419091,0.9231,3680.0,3679.9,13.58766513]
[1754334419302,0.9231,3680.0,3679.9,17.77666513]
[1754334420287,0.9231,3680.0,3679.9,13.56566514]
[1754334420471,0.9231,3680.0,3679.9,9.37766514]
[1754334420670,0.9231,3680.0,3679.9,7.04066514]
[1754334423107,0.9231,3680.0,3679.9,0.1352]
[1754334423269,0.9231,3680.0,3679.9,7.03966514]
[1754334428618,0.001,3680.0,3679.9,22.75978656]
[1754334429372,0.001,3680.0,3679.9,22.31008656]
[1754334429967,0.001,3680.0,3679.9,21.84488656]
[1754334431928,0.001,3680.8,3680.7,2.7168745]
[1754334432078,0.001,3680.8,3680.7,20.30536941]
[1754334432278,0.001,3680.8,3680.7,21.78549261]
[1754334433220,0.001,3680.8,3680.7,22.25069261]
[1754334433513,0.001,3680.8,3680.7,21.78549261]
[1754334433931,0.001,3680.8,3680.7,22.25069261]
[1754334434421,0.001,3680.8,3680.7,18.07069261]
[1754334434642,0.001,3680.8,3680.7,22.24969261]
[1754334434939,0.001,3680.8,3680.7,22.69939261]
[1754334435494,0.001,3680.8,3680.7,17.60549261]
[1754334435819,0.001,3680.8,3680.7,21.78349261]
[1754334437088,0.001,3680.8,3680.7,25.9934926]
[1754334437723,0.001,3680.8,3680.7,26.4825926]
[1754334438126,0.001,3681.2,3681.1,2.71657928]